bitfinex/quotes_BTCUSD_20240911
["timestamp","ask_amount","ask_price","bid_price","bid_amount"]
[1726084209166,1.68426747,57628.0,57627.0,0.00764]
[1726084209614,1.71626747,57628.0,57627.0,0.00764]
[1726084209836,2.13732047,57628.0,57627.0,0.00764]
[1726084210276,2.13632047,57628.0,57627.0,0.00164]
[1726084210496,2.14832047,57628.0,57627.0,0.00164]
[1726084210772,2.13632047,57628.0,57627.0,0.00164]
[1726084211207,1.98331933,57624.0,57623.0,0.00154375]
[1726084211495,2.05331933,57624.0,57623.0,0.00154375]
[1726084212000,2.05331933,57624.0,57611.0,0.0001]
[1726084212001,0.09,57612.0,57611.0,0.0001]
[1726084212214,2.02004333,57612.0,57611.0,0.0001]
[1726084212750,2.12004333,57612.0,57611.0,0.0001]
[1726084212985,2.11804333,57612.0,57611.0,0.0001]
[1726084213210,2.12004333,57612.0,57611.0,0.0001]
[1726084213448,2.05804333,57612.0,57611.0,0.0001]
[1726084213677,1.68089433,57612.0,57611.0,4.02e-06]
[1726084213960,0.598123,57612.0,57611.0,4.02e-06]
[1726084214182,0.1414,57617.0,57611.0,4.02e-06]
[1726084214421,0.520723,57612.0,57611.0,4.02e-06]
[1726084214665,1.56989433,57612.0,57611.0,4.02e-06]
[1726084214906,1.21074533,57612.0,57611.0,4.02e-06]
[1726084215154,1.023272,57612.0,57611.0,4.02e-06]
[1726084215388,0.99049387,57612.0,57611.0,4.02e-06]
[1726084215616,1.31964287,57612.0,57611.0,4.02e-06]
[1726084215847,0.66994487,57612.0,57611.0,4.02e-06]
[1726084216076,0.32279587,57612.0,57611.0,4.02e-06]
[1726084216310,0.65794487,57612.0,57611.0,4.02e-06]
[1726084216557,0.66994487,57612.0,57611.0,4.02e-06]
[1726084217031,0.14922187,57612.0,57611.0,4.02e-06]
[1726084217267,0.03922187,57612.0,57611.0,0.52804079]
[1726084217508,0.03922187,57612.0,57611.0,0.59406401]
[1726084217737,0.022,57612.0,57611.0,0.60136878]
[1726084217977,0.022,57612.0,57611.0,0.74496878]
[1726084218445,0.02721395,57620.0,57619.0,0.173553]
[1726084218682,0.02721395,57620.0,57611.0,0.07310879]
[1726084218917,0.173574,57612.0,57611.0,4.02e-06]
[1726084219297,1.06934533,57612.0,57611.0,4.02e-06]
[1726084219574,0.521723,57612.0,57611.0,4.02e-06]
[1726084219812,0.30179227,57612.0,57611.0,4.02e-06]
[1726084220063,0.64894127,57612.0,57611.0,4.02e-06]
[1726084220580,1.78628194,57612.0,57611.0,4.02e-06]
[1726084220796,2.13543094,57612.0,57611.0,4.02e-06]
[1726084221032,2.16343094,57612.0,57611.0,4.02e-06]
[1726084221283,2.16343094,57612.0,57608.0,0.0037658]
[1726084221284,1.562251,57609.0,57608.0,0.0037658]
[1726084221521,1.562251,57609.0,57599.0,0.00164]
[1726084221522,0.99333967,57604.0,57599.0,0.00164]
[1726084221762,1.81053567,57604.0,57599.0,0.00164]
[1726084222004,2.15773367,57604.0,57599.0,0.00164]
[1726084222737,2.020721,57600.0,57599.0,0.00164]
[1726084222976,1.816899,57600.0,57599.0,0.00164]
[1726084223436,1.469677,57600.0,57599.0,0.00164]
[1726084223669,1.469677,57600.0,57599.0,7.767e-05]
[1726084223670,1.439677,57600.0,57599.0,7.767e-05]
[1726084224183,1.050455,57600.0,57599.0,7.767e-05]
[1726084224688,0.968055,57600.0,57599.0,7.767e-05]
[1726084224943,0.01,57600.0,57599.0,7.767e-05]
[1726084225183,0.03722382,57600.0,57599.0,1.00724767]
[1726084225449,0.01,57600.0,57599.0,1.10846527]
[1726084225679,0.01,57600.0,57599.0,0.32018542]
[1726084225680,0.023,57600.0,57599.0,0.32018542]
[1726084225914,0.023,57600.0,57599.0,0.66741342]
[1726084226131,0.01,57600.0,57599.0,0.66741342]
[1726084226575,0.011,57600.0,57599.0,1.01464142]
[1726084226820,0.011,57600.0,57599.0,1.36186942]
[1726084227088,0.001,57600.0,57599.0,1.50154919]
[1726084227305,0.002,57600.0,57599.0,1.50154919]
[1726084227545,0.02722179,57605.0,57604.0,1.215193]
[1726084227811,0.000821,57612.0,57611.0,0.520732]
[1726084228069,0.000821,57612.0,57611.0,1.361442]
[1726084228330,0.000821,57612.0,57611.0,1.52853047]
[1726084228593,0.000821,57612.0,57611.0,1.02165368]
[1726084228863,0.000821,57612.0,57611.0,0.32734368]
[1726084229099,0.000821,57612.0,57611.0,0.67449868]
[1726084229369,0.000821,57612.0,57611.0,0.32734368]
[1726084229608,0.000821,57612.0,57611.0,0.70723305]
[1726084230092,0.000821,57612.0,57611.0,0.07366668]
[1726084230585,0.868693,57612.0,57611.0,0.00736668]
[1726084230826,1.24405823,57612.0,57611.0,0.00736668]
[1726084231075,0.47618623,57612.0,57599.0,0.06637767]
[1726084231288,0.173591,57607.0,57601.0,0.173607]
[1726084231534,0.1,57611.0,57601.0,0.347213]
[1726084231770,0.1,57611.0,57600.0,0.02298456]
[1726084232010,0.1,57611.0,57607.0,0.173588]
[1726084232540,0.173595,57606.0,57601.0,0.173607]
[1726084232788,0.1,57611.0,57608.0,0.00978414]
[1726084233031,0.0765,57608.0,57599.0,7.767e-05]
[1726084233257,1.328277,57600.0,57599.0,7.767e-05]
[1726084233516,1.411277,57600.0,57599.0,7.767e-05]
[1726084233754,1.381277,57600.0,57599.0,7.767e-05]
[1726084233970,1.481277,57600.0,57599.0,7.767e-05]
[1726084234216,1.75871967,57600.0,57599.0,7.767e-05]
[1726084234482,1.78594635,57600.0,57599.0,7.767e-05]
[1726084234745,1.79994635,57600.0,57599.0,7.767e-05]
[1726084235894,1.81394635,57600.0,57599.0,7.767e-05]
[1726084237022,1.02328168,57600.0,57599.0,7.767e-05]
[1726084237515,0.66205968,57600.0,57599.0,7.767e-05]
[1726084237735,1.00928168,57600.0,57599.0,7.767e-05]
[1726084237979,0.14122668,57600.0,57599.0,0.17369167]
[1726084238206,0.05522668,57600.0,57599.0,7.767e-05]
[1726084238454,0.02722668,57600.0,57599.0,0.18303374]
[1726084238677,0.04122668,57600.0,57599.0,7.767e-05]
[1726084238862,0.04122668,57600.0,57599.0,0.18303374]
[1726084239113,0.03522668,57600.0,57599.0,0.18303374]
[1726084239346,0.03722668,57600.0,57599.0,0.18303374]
[1726084239627,0.03522668,57600.0,57599.0,0.18303374]
[1726084239844,0.03522668,57600.0,57599.0,0.53026174]
[1726084240096,0.03522668,57600.0,57599.0,0.90808762]
[1726084240097,0.02722668,57600.0,57599.0,0.90808762]
[1726084240338,0.03222668,57600.0,57599.0,1.31681562]
[1726084240583,0.005,57600.0,57599.0,1.39461562]
[1726084240821,0.02804023,57612.0,57608.0,0.173586]
[1726084241076,0.02804023,57612.0,57610.0,0.520741]
[1726084241317,0.02804023,57612.0,57610.0,1.007202]
[1726084241559,0.000821,57612.0,57610.0,1.01654407]
[1726084242280,0.000821,57612.0,57610.0,0.14864207]
[1726084242525,0.000821,57612.0,57610.0,0.07084207]
[1726084242749,0.001821,57611.0,57610.0,0.24442207]
[1726084242992,0.001821,57611.0,57610.0,0.00934207]
[1726084243229,0.001821,57611.0,57606.0,0.424784]
[1726084243479,0.001821,57611.0,57610.0,0.00934207]
[1726084243480,0.002821,57611.0,57610.0,0.00934207]
[1726084243753,0.002821,57611.0,57600.0,0.1426]
[1726084243974,0.522557,57611.0,57610.0,0.00932253]
[1726084244220,0.276398,57611.0,57610.0,0.00932253]
[1726084244470,0.347163,57610.0,57600.0,0.11777949]
[1726084244767,0.520833,57600.0,57599.0,7.767e-05]
[1726084245003,0.520815,57602.0,57601.0,0.00933402]
[1726084245236,0.173605,57602.0,57601.0,0.00933402]
[1726084245477,0.173605,57602.0,57599.0,7.767e-05]
[1726084245478,0.02722115,57602.0,57599.0,7.767e-05]
[1726084245703,0.02722115,57602.0,57600.0,0.17361]
[1726084245943,0.02722115,57602.0,57600.0,0.00933402]
[1726084247110,0.02722115,57602.0,57601.0,0.173608]
[1726084247365,0.02722115,57602.0,57601.0,0.57384797]
[1726084247648,0.02722115,57602.0,57601.0,0.93041316]
[1726084247886,0.000821,57611.0,57607.0,0.173587]
[1726084247887,0.274401,57611.0,57607.0,0.173587]
[1726084248128,0.02721898,57610.0,57603.0,0.347201]
[1726084248366,0.02721898,57610.0,57608.0,0.18292491]
[1726084248602,0.02721898,57610.0,57608.0,0.00933991]
[1726084248836,0.02721898,57610.0,57609.0,0.00933991]
[1726084249078,0.12721898,57610.0,57609.0,0.00833991]
[1726084249552,0.12721898,57610.0,57604.0,0.347197]
[1726084249853,0.12721898,57610.0,57609.0,0.00928745]
[1726084250088,0.02721898,57610.0,57609.0,0.867917]
[1726084250325,0.02721898,57610.0,57609.0,0.87720445]
[1726084250554,0.02721898,57610.0,57609.0,0.00928745]
[1726084251038,0.173588,57608.0,57604.0,0.173597]
[1726084251333,0.02721898,57610.0,57609.0,0.173583]
[1726084251818,0.02721898,57610.0,57604.0,0.0661155]
[1726084252065,0.17359,57607.0,57603.0,0.173601]
[1726084252308,0.02721898,57610.0,57601.0,0.140342]
[1726084252309,0.173587,57608.0,57604.0,0.173599]
[1726084252539,0.02721898,57610.0,57603.0,0.173602]
[1726084252540,0.17359,57607.0,57603.0,0.173602]
[1726084252771,0.173586,57609.0,57604.0,0.173598]
[1726084253021,0.20079998,57610.0,57606.0,0.173592]
[1726084253266,0.20079998,57610.0,57601.0,0.140342]
[1726084253267,0.02721898,57610.0,57604.0,0.174597]
[1726084253508,0.347168,57609.0,57604.0,0.001]
[1726084253745,0.173588,57608.0,57604.0,0.174597]
[1726084253984,0.173588,57608.0,57605.0,0.173595]
[1726084254240,0.173585,57609.0,57605.0,0.173595]
[1726084254480,0.347169,57609.0,57604.0,0.001]
[1726084254735,0.520788,57605.0,57604.0,0.001]
[1726084254975,0.173596,57605.0,57604.0,0.001]
[1726084255236,0.0786,57608.0,57601.0,0.348853]
[1726084255454,0.174592,57607.0,57603.0,0.173601]
[1726084255933,0.02721898,57610.0,57602.0,0.39946407]
[1726084256169,0.12721898,57610.0,57606.0,0.173591]
[1726084256390,0.12721898,57610.0,57602.0,0.39946407]
[1726084256391,0.12721898,57610.0,57602.0,0.05225507]
[1726084256632,0.12721898,57610.0,57607.0,0.00929798]
[1726084256633,0.173585,57609.0,57607.0,0.00929798]
[1726084256865,0.12721898,57610.0,57602.0,0.173604]
[1726084256866,0.173595,57606.0,57602.0,0.173604]
[1726084257321,0.173595,57606.0,57603.0,0.173602]
[1726084257605,0.520815,57602.0,57601.0,0.001642]
[1726084258277,0.868025,57602.0,57601.0,0.001642]
[1726084258495,0.968025,57602.0,57601.0,0.001642]
[1726084258740,0.99524771,57602.0,57601.0,0.001642]
[1726084259231,1.04713821,57602.0,57601.0,0.001642]
[1726084260444,0.69992821,57602.0,57601.0,0.001642]
[1726084260666,2.05510386,57602.0,57601.0,0.001642]
[1726084260927,2.05510386,57602.0,57601.0,6.626e-05]
[1726084261645,2.02510386,57602.0,57601.0,6.626e-05]
[1726084261885,2.03410386,57602.0,57601.0,6.626e-05]
[1726084262366,2.38945059,57602.0,57601.0,6.626e-05]
[1726084262591,1.049555,57600.0,57599.0,7.767e-05]
[1726084262862,2.23991647,57600.0,57599.0,7.767e-05]
[1726084263092,2.33991647,57600.0,57599.0,7.767e-05]
[1726084263564,2.33791647,57600.0,57599.0,7.767e-05]
[1726084264056,2.33991647,57600.0,57599.0,7.767e-05]
[1726084264332,2.33791647,57600.0,57599.0,7.767e-05]
[1726084264570,2.77383847,57600.0,57599.0,7.767e-05]
[1726084265043,2.42193888,57600.0,57599.0,7.767e-05]
[1726084265571,2.45116769,57600.0,57599.0,7.767e-05]
[1726084265818,1.45394,57597.0,57596.0,0.0032903]
[1726084266044,2.24762255,57597.0,57596.0,0.0032903]
[1726084266319,2.24762255,57597.0,57596.0,0.00016256]
[1726084266320,3.04210255,57597.0,57596.0,0.00016256]
[1726084266537,0.635878,57595.0,57594.0,0.00164]
[1726084266767,0.635878,57595.0,57581.0,0.00164]
[1726084266768,1.34271767,57592.0,57581.0,0.00164]
[1726084267018,3.04226755,57592.0,57581.0,0.00164]
[1726084267485,3.06950089,57592.0,57581.0,0.00164]
[1726084267743,1.89542767,57582.0,57581.0,0.00164]
[1726084267967,2.31907745,57582.0,57581.0,0.00164]
[1726084268220,2.7722829,57582.0,57581.0,0.00164]
[1726084268451,2.7722829,57582.0,57574.0,0.00164]
[1726084268452,1.699074,57575.0,57574.0,0.00164]
[1726084268690,2.4107506,57575.0,57574.0,0.00164]
[1726084268925,2.38316645,57575.0,57574.0,0.00164]
[1726084269162,2.43781723,57575.0,57574.0,0.00164]
[1726084269871,2.38116645,57575.0,57574.0,0.00164]
[1726084270115,2.40840679,57575.0,57574.0,0.00164]
[1726084270360,1.78828501,57575.0,57574.0,0.00164]
[1726084270606,0.91867034,57575.0,57574.0,0.00164]
[1726084270873,0.02724034,57575.0,57574.0,0.175329]
[1726084271102,0.02724034,57575.0,57574.0,0.1073556]
[1726084271576,0.02724034,57575.0,57574.0,0.3476446]
[1726084271577,0.04124034,57575.0,57574.0,0.3476446]
[1726084271810,0.02724034,57575.0,57574.0,0.32972512]
[1726084272031,0.03924034,57575.0,57574.0,0.32972512]
[1726084272258,0.03924034,57575.0,57574.0,0.67710412]
[1726084272259,0.012,57575.0,57574.0,0.67710412]
[1726084272489,0.173658,57585.0,57578.0,0.347353]
[1726084272760,0.05179421,57593.0,57578.0,0.347353]
[1726084272761,0.347302,57587.0,57580.0,0.173669]
[1726084272999,0.05179421,57597.0,57584.0,0.347315]
[1726084273236,0.38103945,57600.0,57585.0,0.141]
[1726084273237,0.00434122,57596.0,57585.0,0.141]
[1726084273469,0.173645,57589.0,57585.0,0.141]
[1726084273700,0.173645,57589.0,57586.0,0.00939612]
[1726084273931,0.173645,57589.0,57586.0,0.00839612]
[1726084274171,0.347263,57594.0,57586.0,0.00839612]
[1726084274172,0.173641,57590.0,57586.0,0.00839612]
[1726084274424,0.347283,57590.0,57586.0,0.00839612]
[1726084274663,0.17365,57587.0,57586.0,0.00839612]
[1726084275360,0.20087843,57587.0,57586.0,0.00839612]
[1726084275590,0.89547843,57587.0,57586.0,0.00839612]
[1726084276063,0.12722843,57587.0,57586.0,0.00839612]
[1726084276327,0.12722843,57587.0,57582.0,0.347329]
[1726084276618,0.1,57586.0,57582.0,0.07056832]
[1726084276864,0.1,57586.0,57584.0,0.173658]
[1726084277328,0.1,57586.0,57585.0,0.173656]
[1726084277796,0.37552943,57587.0,57581.0,0.063]
[1726084278044,0.37552943,57587.0,57586.0,0.520959]
[1726084278045,0.02822843,57587.0,57586.0,0.520959]
[1726084278294,0.02822843,57587.0,57586.0,1.0030609]
[1726084278548,0.02822843,57587.0,57586.0,0.6557549]
[1726084278549,0.02722843,57587.0,57586.0,0.6557549]
[1726084278777,0.02722843,57587.0,57586.0,0.6547549]
[1726084279670,0.02722843,57587.0,57586.0,0.602659]
[1726084280401,0.02722843,57587.0,57586.0,0.0827]
[1726084280640,0.02722843,57587.0,57586.0,0.256353]
[1726084280876,0.02722843,57587.0,57586.0,0.950965]
[1726084281121,0.02822843,57587.0,57586.0,0.256353]
[1726084281797,0.02822843,57587.0,57586.0,0.0827]
[1726084282291,0.17465,57587.0,57586.0,0.0827]
[1726084282772,0.001,57587.0,57586.0,0.0827]
[1726084283012,0.001,57587.0,57586.0,0.26570748]
[1726084283320,0.001,57587.0,57586.0,0.00935448]
[1726084283537,1.21291655,57587.0,57586.0,0.00935448]
[1726084283764,1.21291655,57587.0,57571.0,0.0001]
[1726084283765,0.619058,57575.0,57571.0,0.0001]
[1726084284004,0.89143,57575.0,57571.0,0.0001]
[1726084284251,0.1,57575.0,57571.0,0.0001]
[1726084284480,0.96843,57575.0,57571.0,0.0001]
[1726084284718,0.621058,57575.0,57571.0,0.0001]
[1726084284962,1.315802,57575.0,57571.0,0.0001]
[1726084285209,0.97143,57575.0,57571.0,0.0001]
[1726084285489,1.318802,57575.0,57571.0,0.0001]
[1726084285747,1.36603806,57575.0,57571.0,0.0001]
[1726084285989,1.82646517,57575.0,57571.0,0.0001]
[1726084286224,0.439403,57570.0,57561.0,0.0032903]
[1726084286453,0.960627,57562.0,57561.0,0.0032903]
[1726084286701,2.3849091,57562.0,57561.0,0.0032903]
[1726084286958,2.7323601,57562.0,57561.0,0.0032903]
[1726084287204,1.95610667,57557.0,57541.0,0.00164]
[1726084287443,1.80019499,57557.0,57541.0,0.00164]
[1726084287704,1.72262567,57557.0,57541.0,0.00164]
[1726084287931,1.77434046,57557.0,57541.0,0.00164]
[1726084288376,1.72262567,57557.0,57541.0,0.00164]
[1726084288637,1.34514467,57557.0,57543.0,0.08294]
[1726084288872,1.067702,57557.0,57547.0,0.0617]
[1726084289115,1.081702,57557.0,57547.0,0.0617]
[1726084289431,1.081702,57557.0,57543.0,0.00164]
[1726084289681,1.74362567,57557.0,57543.0,0.00164]
[1726084290378,1.43314467,57557.0,57543.0,0.00164]
[1726084290610,1.78062567,57557.0,57543.0,0.00164]
[1726084290859,1.75962567,57557.0,57543.0,0.00164]
[1726084291320,1.77062567,57557.0,57543.0,0.00164]
[1726084291568,1.78462567,57557.0,57543.0,0.00164]
[1726084291803,1.081702,57557.0,57545.0,0.0647]
[1726084292037,1.35914467,57557.0,57545.0,0.0647]
[1726084292275,1.34514467,57557.0,57545.0,0.0647]
[1726084292509,1.70662567,57557.0,57545.0,0.0647]
[1726084292734,1.34514467,57557.0,57545.0,0.0647]
[1726084292957,1.26914467,57557.0,57545.0,0.0647]
[1726084294630,1.61662567,57557.0,57545.0,0.0647]
[1726084294876,1.63062567,57557.0,57545.0,0.0647]
[1726084295114,1.61662567,57557.0,57545.0,0.0647]
[1726084295334,1.67292722,57557.0,57545.0,0.0647]
[1726084295568,1.30039211,57557.0,57545.0,0.0647]
[1726084296052,1.30039211,57557.0,57545.0,0.238476]
[1726084296272,1.30039211,57557.0,57545.0,0.238475]
[1726084296512,0.92991111,57557.0,57550.0,0.173761]
[1726084296749,0.65246844,57557.0,57554.0,0.0804]
[1726084296987,0.99994944,57557.0,57554.0,0.0804]
[1726084297208,0.65246844,57557.0,57554.0,0.0804]
[1726084297447,0.13124744,57557.0,57554.0,0.0804]
[1726084297668,0.03124744,57557.0,57556.0,0.0673078]
[1726084297864,0.02724744,57557.0,57556.0,0.07683904]
[1726084298104,0.02724744,57557.0,57556.0,0.59806904]
[1726084298331,0.02724744,57557.0,57556.0,0.35356254]
[1726084298558,0.02724744,57557.0,57556.0,1.04853654]
[1726084299004,0.173695,57572.0,57568.0,0.1423]
[1726084299219,0.347366,57577.0,57568.0,0.1423]
[1726084299462,0.34738,57574.0,57569.0,0.01423]
[1726084299678,0.20093127,57572.0,57569.0,0.01423]
[1726084300332,0.02723627,57572.0,57569.0,0.347407]
[1726084300558,0.02723627,57572.0,57571.0,0.173698]
[1726084300844,0.02723627,57572.0,57571.0,0.868492]
[1726084301061,0.02723627,57572.0,57571.0,1.293189]
[1726084301753,0.02923627,57572.0,57571.0,1.293189]
[1726084301978,0.02923627,57572.0,57571.0,1.4574499]
[1726084302219,0.000821,57587.0,57586.0,0.173653]
[1726084302427,0.000821,57587.0,57586.0,0.665659]
[1726084302634,0.000821,57587.0,57586.0,0.318353]
[1726084302846,0.000821,57587.0,57586.0,0.665659]
[1726084304172,0.000821,57587.0,57586.0,0.1447]
[1726084304397,0.174471,57587.0,57586.0,0.1447]
[1726084304637,0.274471,57587.0,57586.0,0.1447]
[1726084304867,0.100821,57587.0,57586.0,0.1457]
[1726084305108,0.100821,57587.0,57586.0,0.15506504]
[1726084305334,0.64899988,57587.0,57586.0,0.07186504]
[1726084305564,0.64899988,57587.0,57586.0,0.07086504]
[1726084305793,0.99629988,57587.0,57586.0,0.0615]
[1726084306020,0.64999988,57587.0,57586.0,0.0625]
[1726084306269,0.12904988,57587.0,57586.0,0.0625]
[1726084306500,0.02904988,57587.0,57586.0,0.24551804]
[1726084306733,0.02904988,57587.0,57586.0,0.07186504]
[1726084306958,0.30269988,57587.0,57586.0,0.07186504]
[1726084307208,0.54999988,57587.0,57586.0,0.07186504]
[1726084307444,0.30269988,57587.0,57586.0,0.07186504]
[1726084307678,0.64999988,57587.0,57586.0,0.07186504]
[1726084308142,0.12904988,57587.0,57586.0,0.0625]
[1726084308386,0.02904988,57587.0,57586.0,0.07186504]
[1726084308639,0.54999988,57587.0,57586.0,0.01036504]
[1726084308898,0.99729988,57587.0,57586.0,0.01036504]
[1726084309130,0.30269988,57587.0,57586.0,0.001]
[1726084309357,0.12904988,57587.0,57586.0,0.001]
[1726084309585,0.64999988,57587.0,57586.0,0.001]
[1726084310061,0.64999988,57587.0,57586.0,0.01036504]
[1726084310303,0.12904988,57587.0,57586.0,0.01036504]
[1726084310541,0.02904988,57587.0,57586.0,0.59452404]
[1726084310780,0.54999988,57587.0,57586.0,0.07356504]
[1726084311244,0.99729988,57587.0,57586.0,0.01036504]
[1726084311699,0.64999988,57587.0,57586.0,0.001]
[1726084312174,0.173664,57583.0,57580.0,0.0632]
[1726084312445,0.173657,57585.0,57581.0,0.173668]
[1726084312674,0.448121,57587.0,57581.0,0.00936489]
[1726084312916,0.173657,57585.0,57581.0,0.18303189]
[1726084313147,0.173664,57583.0,57581.0,0.00936489]
[1726084313391,0.348121,57587.0,57581.0,0.00936489]
[1726084313392,1.9434493,57582.0,57581.0,0.00936489]
[1726084313869,1.9434493,57582.0,57568.0,0.001642]
[1726084313870,0.173699,57571.0,57568.0,0.001642]
[1726084314364,0.173699,57571.0,57569.0,0.00937941]
[1726084314365,0.1737,57571.0,57569.0,0.00937941]
[1726084314821,0.347354,57579.0,57569.0,0.00937941]
[1726084315097,0.173692,57573.0,57572.0,0.0827]
[1726084315561,0.173692,57574.0,57572.0,0.0797]
[1726084315802,0.173692,57573.0,57572.0,0.08907941]
[1726084316042,0.173692,57573.0,57572.0,0.11552195]
[1726084316294,1.215931,57569.0,57568.0,0.001642]
[1726084316770,1.315931,57569.0,57568.0,0.001642]
[1726084317008,1.34317206,57569.0,57568.0,0.001642]
[1726084319075,1.35717206,57569.0,57568.0,0.002642]
[1726084320256,1.34317206,57569.0,57568.0,0.001642]
[1726084320723,0.99576306,57569.0,57568.0,0.001642]
[1726084321685,0.21294506,57569.0,57568.0,0.001642]
[1726084321928,0.173691,57574.0,57568.0,0.257949]
[1726084322165,0.347358,57578.0,57571.0,0.173696]
[1726084322410,0.347358,57578.0,57573.0,0.17369]
[1726084322411,0.17368,57578.0,57573.0,0.17369]
[1726084322646,0.347322,57584.0,57574.0,0.0656]
[1726084322904,0.348126,57587.0,57575.0,0.4697716]
[1726084323163,0.348126,57587.0,57575.0,0.1223996]
[1726084323164,0.000821,57587.0,57575.0,0.1223996]
[1726084323403,0.347307,57586.0,57577.0,0.0644]
[1726084323654,0.000821,57587.0,57577.0,0.0644]
[1726084323934,0.347318,57584.0,57578.0,0.173675]
[1726084324177,0.173661,57584.0,57579.0,0.24433536]
[1726084324425,0.173661,57584.0,57579.0,0.07066336]
[1726084324426,0.34732,57584.0,57579.0,0.07066336]
[1726084324649,0.02723131,57585.0,57581.0,0.173665]
[1726084324897,0.02723131,57585.0,57584.0,0.173659]
[1726084325397,0.02723131,57585.0,57584.0,0.73470587]
[1726084325627,0.02723131,57585.0,57584.0,1.39840334]
[1726084326084,0.000821,57587.0,57586.0,1.215571]
[1726084326327,0.000821,57587.0,57586.0,1.359871]
[1726084326567,0.02722556,57593.0,57592.0,1.362845]
[1726084326817,0.000821,57601.0,57586.0,0.63340996]
[1726084326818,0.000821,57601.0,57600.0,0.520833]
[1726084327086,0.000821,57601.0,57600.0,1.015455]
[1726084327336,0.000821,57601.0,57600.0,0.67660178]
[1726084327563,0.000821,57601.0,57600.0,1.02382378]
[1726084327829,0.000821,57601.0,57600.0,1.16392976]
[1726084328825,0.000821,57601.0,57600.0,1.16592976]
[1726084329039,0.000821,57601.0,57600.0,1.51315176]
[1726084329723,0.000821,57601.0,57600.0,1.16392976]
[1726084329968,0.000821,57607.0,57606.0,0.173593]
[1726084330213,0.000821,57607.0,57606.0,1.0307243]
[1726084330457,0.000821,57607.0,57606.0,1.38625361]
[1726084330689,0.000821,57607.0,57606.0,1.82343961]
[1726084331166,0.000821,57611.0,57610.0,1.247063]
[1726084331403,0.000821,57611.0,57610.0,1.388463]
[1726084331641,0.000821,57611.0,57610.0,1.57295757]
[1726084331896,0.000821,57611.0,57610.0,1.57495757]
[1726084332137,0.000821,57611.0,57610.0,1.92211857]
[1726084332369,0.000821,57612.0,57610.0,1.92211857]
[1726084332370,0.000821,57612.0,57611.0,1.467042]
[1726084332618,0.000821,57612.0,57611.0,1.442042]
[1726084332862,0.000821,57612.0,57611.0,2.17456312]
[1726084333091,0.0037658,57617.0,57611.0,2.17456312]
[1726084333092,0.0037658,57617.0,57616.0,1.66159839]
[1726084333320,0.0037658,57617.0,57616.0,1.62959839]
[1726084333582,0.0037658,57617.0,57616.0,0.657687]
[1726084333838,0.0037658,57617.0,57616.0,0.66594339]
[1726084334079,0.1773248,57617.0,57616.0,0.14525639]
[1726084334358,0.1773248,57617.0,57616.0,0.06995639]
[1726084334586,0.8725628,57617.0,57616.0,0.02025639]
[1726084334828,0.5244438,57617.0,57616.0,0.00825639]
[1726084335048,0.173571,57614.0,57610.0,0.0637]
[1726084335273,0.173565,57616.0,57611.0,0.18181847]
[1726084335498,0.03097966,57617.0,57615.0,0.173563]
[1726084335721,0.03097966,57617.0,57616.0,0.0173563]
[1726084336001,0.03097966,57617.0,57616.0,0.945512]
[1726084336224,0.03097966,57617.0,57616.0,1.01745347]
[1726084336680,0.03097966,57617.0,57616.0,1.36657847]
[1726084336933,0.03197966,57617.0,57616.0,1.37257847]
[1726084337847,0.03197966,57617.0,57616.0,1.40257847]
[1726084338082,0.00082,57630.0,57627.0,0.139]
[1726084338324,0.00082,57630.0,57629.0,0.52057]
[1726084338813,0.0037658,57634.0,57627.0,0.139]
[1726084338814,0.17351,57634.0,57627.0,0.139]
[1726084339036,0.17352,57630.0,57629.0,0.00825356]
[1726084339262,0.173521,57630.0,57626.0,0.173531]
[1726084339545,0.347029,57633.0,57623.0,0.173541]
[1726084339546,0.411229,57633.0,57623.0,0.173541]
[1726084339776,0.173529,57628.0,57624.0,0.173537]
[1726084339998,0.0765,57636.0,57624.0,0.173536]
[1726084340225,0.0765,57636.0,57627.0,0.002]
[1726084340226,0.173527,57628.0,57627.0,0.002]
[1726084340447,0.173527,57628.0,57624.0,0.173536]
[1726084340668,0.173527,57628.0,57625.0,0.0520623]
[1726084341133,0.17353,57627.0,57625.0,0.0520623]
[1726084341351,0.173532,57626.0,57625.0,0.0520623]
[1726084341573,0.173538,57625.0,57623.0,0.009]
[1726084341813,0.27766139,57632.0,57612.0,0.1376]
[1726084342069,0.27766139,57632.0,57624.0,0.173537]
[1726084342070,0.520575,57629.0,57624.0,0.173537]
[1726084342305,0.1,57632.0,57625.0,0.0173537]
[1726084342537,0.346993,57638.0,57630.0,0.173519]
[1726084342762,0.346993,57638.0,57628.0,0.0625]
[1726084342763,0.173518,57631.0,57628.0,0.0625]
[1726084342986,0.1,57630.0,57628.0,0.0625]
[1726084343221,0.347007,57636.0,57629.0,0.031113]
[1726084343456,0.1,57635.0,57631.0,0.347032]
[1726084343702,0.173502,57636.0,57632.0,0.173512]
[1726084343927,0.1,57635.0,57633.0,0.0551657]
[1726084344158,0.173508,57634.0,57629.0,0.37816]
[1726084344387,0.002,57630.0,57629.0,0.204636]
[1726084344618,0.173515,57632.0,57629.0,0.031113]
[1726084344858,0.347018,57634.0,57629.0,0.031113]
[1726084344859,0.347018,57634.0,57630.0,0.0515771]
[1726084345081,0.1,57633.0,57632.0,0.014]
[1726084345542,0.273506,57635.0,57632.0,0.014]
[1726084345543,0.1,57635.0,57632.0,0.014]
[1726084345765,1.49224139,57633.0,57632.0,0.014]
[1726084346250,0.967557,57633.0,57632.0,0.014]
[1726084346473,0.967557,57633.0,57620.0,0.3471]
[1726084346474,0.173529,57627.0,57620.0,0.3471]
[1726084346690,0.173532,57626.0,57623.0,0.173541]
[1726084346913,0.173536,57625.0,57622.0,0.173544]
[1726084347134,0.173543,57623.0,57621.0,0.04093]
[1726084347427,1.62045063,57633.0,57632.0,0.008]
[1726084348777,1.34278924,57633.0,57632.0,0.008]
[1726084349880,0.347077,57624.0,57619.0,0.173553]
[1726084350139,0.12720924,57633.0,57617.0,0.347115]
[1726084350372,0.347056,57628.0,57622.0,0.173543]
[1726084350620,0.173536,57625.0,57620.0,0.347099]
[1726084350852,0.347063,57627.0,57623.0,0.00777603]
[1726084351067,0.347063,57627.0,57618.0,0.2220155]
[1726084351068,0.173545,57622.0,57618.0,0.2220175]
[1726084351289,0.0808,57626.0,57615.0,0.250064]
[1726084351513,0.0808,57626.0,57617.0,0.002]